fUSD/lending_fUSD_20250209
["ID","MTS","AMOUNT","RATE_DAILY","PERIOD"]
[352467383,1739127038133,-500.0,9.998e-05,2]
[352467384,1739127038143,-500.0,9.998e-05,2]
[352467386,1739127038152,-500.0,9.998e-05,2]
[352467387,1739127038161,-504.05176596,9.998e-05,2]
[352467389,1739127038171,-500.0,9.998e-05,2]
[352467391,1739127038180,-500.0,9.998e-05,2]
[352467393,1739127038189,-500.0,9.998e-05,2]
[352467397,1739127038199,-500.0,9.998e-05,2]
[352467400,1739127038208,-510.61,9.998e-05,2]
[352467402,1739127038218,-500.0,9.998e-05,2]
[352467404,1739127038228,-500.0,9.998e-05,2]
[352467407,1739127038238,-500.0,9.998e-05,2]
[352467409,1739127038248,-500.0,9.998e-05,2]
[352467411,1739127038258,-500.0,9.998e-05,2]
[352467413,1739127038267,-500.0,9.998e-05,2]
[352467415,1739127038277,-500.0,9.998e-05,2]
[352467417,1739127038285,-500.0,9.998e-05,2]
[352467419,1739127038295,-500.0,9.998e-05,2]
[352467421,1739127038305,-500.0,9.998e-05,2]
[352467423,1739127038314,-500.0,9.998e-05,2]
[352467425,1739127038323,-500.0,9.998e-05,2]
[352467426,1739127038332,-500.0,9.998e-05,2]
[352467427,1739127038341,-500.0,9.998e-05,2]
[352467428,1739127038353,-500.0,9.998e-05,2]
[352467429,1739127038362,-500.0,9.998e-05,2]
[352467430,1739127038371,-519.25759795,9.998e-05,2]
[352467431,1739127038380,-500.0,9.998e-05,2]
[352467432,1739127038389,-500.0,9.998e-05,2]
[352467433,1739127038397,-500.0,9.998e-05,2]
[352467434,1739127038406,-500.0,9.998e-05,2]
[352467435,1739127038416,-500.0,9.998e-05,2]
[352467436,1739127038425,-500.0,9.998e-05,2]
[352467437,1739127038434,-500.0,9.998e-05,2]
[352467438,1739127038443,-500.0,9.998e-05,2]
[352467439,1739127038452,-236.01871136,9.998e-05,2]
[352467441,1739127038466,-289.46029204,9.998e-05,2]
[352467443,1739127038475,-500.0,9.998e-05,2]
[352467445,1739127038484,-532.66350161,9.998e-05,2]
[352467447,1739127038493,-500.0,9.998e-05,2]
[352467449,1739127038502,-500.0,9.998e-05,2]
[352467451,1739127038511,-500.0,9.998e-05,2]
[352467453,1739127038520,-500.0,9.998e-05,2]
[352467455,1739127038529,-500.0,9.998e-05,2]
[352467457,1739127038538,-377.87620635,9.998e-05,2]
[352467459,1739127038550,-122.12379365,9.998e-05,2]
[352467461,1739127038559,-500.0,9.998e-05,2]
[352467463,1739127038568,-502.9,9.998e-05,2]
[352467465,1739127038577,-500.0,9.998e-05,2]
[352467467,1739127038586,-500.0,9.998e-05,2]
[352467469,1739127038597,-500.0,9.998e-05,2]
[352467471,1739127038607,-478.54720869,9.998e-05,2]
[352467473,1739127038619,-21.45279131,9.998e-05,2]
[352467475,1739127038629,-500.0,9.998e-05,2]
[352467477,1739127038638,-500.0,9.998e-05,2]
[352467479,1739127038647,-417.08782045,9.998e-05,2]
[352467482,1739127038658,-82.91217955,9.998e-05,2]
[352467484,1739127038667,-500.0,9.998e-05,2]
[352467486,1739127038676,-500.0,9.998e-05,2]
[352467487,1739127038685,-500.0,9.998e-05,2]
[352467490,1739127038694,-226.93826182,9.998e-05,2]
[352467491,1739127038704,-500.0,9.998e-05,2]
[352467493,1739127038713,-500.0,9.998e-05,2]
[352467495,1739127038726,-500.0,9.998e-05,2]
[352467497,1739127038735,-500.0,9.998e-05,2]
[352467499,1739127038745,-500.0,9.998e-05,2]
[352467502,1739127038755,-500.0,9.998e-05,2]
[352467504,1739127038767,-500.0,9.998e-05,2]
[352467506,1739127038776,-500.0,9.998e-05,2]
[352467507,1739127038786,-500.0,9.998e-05,2]
[352467509,1739127038797,-503.15,9.998e-05,2]
[352467512,1739127038806,-500.0,9.998e-05,2]
[352467513,1739127038816,-500.0,9.998e-05,2]
[352467515,1739127038826,-500.0,9.998e-05,2]
[352467517,1739127038835,-500.0,9.998e-05,2]
[352467519,1739127038846,-500.0,9.998e-05,2]
[352467521,1739127038856,-501.60888486,9.998e-05,2]
[352467523,1739127038866,-525.27443874,9.998e-05,2]
[352467525,1739127038875,-500.0,9.998e-05,2]
[352467527,1739127038885,-500.0,9.998e-05,2]
[352467529,1739127038894,-500.0,9.998e-05,2]
[352467531,1739127038904,-500.0,9.998e-05,2]
[352467533,1739127038913,-500.0,9.998e-05,2]
[352467536,1739127038923,-458.0984364,9.998e-05,2]
[352467537,1739127038932,-500.0,9.998e-05,2]
[352467539,1739127038942,-500.0,9.998e-05,2]
[352467541,1739127038951,-500.0,9.998e-05,2]
[352467543,1739127038960,-524.09,9.998e-05,2]
[352467545,1739127038969,-500.0,9.998e-05,2]
[352467547,1739127038978,-500.0,9.998e-05,2]
[352467549,1739127038987,-500.0,9.998e-05,2]
[352467551,1739127038997,-500.0,9.998e-05,2]
[352467553,1739127039006,-500.0,9.998e-05,2]
[352467555,1739127039016,-500.0,9.998e-05,2]
[352467557,1739127039025,-500.0,9.998e-05,2]
[352467559,1739127039034,-500.0,9.998e-05,2]
[352467561,1739127039044,-500.0,9.998e-05,2]
[352467563,1739127039053,-500.0,9.998e-05,2]
[352467565,1739127039062,-500.82356971,9.998e-05,2]
[352467567,1739127039071,-277.10422892,9.998e-05,2]
[352467570,1739127039087,-223.67796283,9.998e-05,2]
[352467572,1739127039098,-500.0,9.998e-05,2]
[352467573,1739127039107,-500.0,9.998e-05,2]
[352467576,1739127039118,-500.0,9.998e-05,2]
[352467578,1739127039127,-500.0,9.998e-05,2]
[352467580,1739127039136,-500.0,9.998e-05,2]
[352467581,1739127039146,-500.0,9.998e-05,2]
[352467583,1739127039155,-500.0,9.998e-05,2]
[352467585,1739127039165,-500.0,9.998e-05,2]
[352467587,1739127039174,-500.0,9.998e-05,2]
[352467589,1739127039183,-500.0,9.998e-05,2]
[352467591,1739127039192,-500.0,9.998e-05,2]
[352467593,1739127039201,-500.60435142,9.998e-05,2]
[352467595,1739127039210,-500.0,9.998e-05,2]
[352467597,1739127039219,-500.0,9.998e-05,2]
[352467599,1739127039229,-500.0,9.998e-05,2]
[352467601,1739127039237,-500.0,9.998e-05,2]
[352467603,1739127039247,-500.0,9.998e-05,2]
[352467605,1739127039256,-500.0,9.998e-05,2]
[352467607,1739127039266,-500.0,9.998e-05,2]
[352467609,1739127039275,-500.0,9.998e-05,2]
[352467611,1739127039284,-500.0,9.998e-05,2]
[352467613,1739127039294,-500.0,9.998e-05,2]
[352467615,1739127039304,-500.0,9.998e-05,2]
[352467617,1739127039315,-500.0,9.998e-05,2]
[352467619,1739127039325,-500.0,9.998e-05,2]
[352467621,1739127039336,-409.79994,9.998e-05,2]
[352467623,1739127039346,-500.0,9.998e-05,2]
[352467626,1739127039355,-500.0,9.998e-05,2]
[352467628,1739127039365,-500.0,9.998e-05,2]
[352467630,1739127039375,-500.0,9.998e-05,2]
[352467631,1739127039384,-500.0,9.998e-05,2]
[352467633,1739127039393,-500.0,9.998e-05,2]
[352467635,1739127039403,-500.0,9.998e-05,2]
[352467637,1739127039412,-513.536867,9.998e-05,2]
[352467639,1739127039421,-500.0,9.998e-05,2]
[352467641,1739127039431,-500.0,9.998e-05,2]
[352467643,1739127039440,-500.0,9.998e-05,2]
[352467645,1739127039452,-500.0,9.998e-05,2]
[352467647,1739127039461,-500.0,9.998e-05,2]
[352467649,1739127039471,-500.0,9.998e-05,2]
[352467651,1739127039481,-500.0,9.998e-05,2]
[352467653,1739127039490,-500.0,9.998e-05,2]
[352467655,1739127039500,-160.99916,9.998e-05,2]
[352467657,1739127039509,-500.0,9.998e-05,2]
[352467659,1739127039519,-500.0,9.998e-05,2]
[352467661,1739127039527,-957.91,9.998e-05,2]
[352467663,1739127039536,-500.0,9.998e-05,2]
[352467665,1739127039545,-500.0,9.998e-05,2]
[352467667,1739127039554,-500.0,9.998e-05,2]
[352467669,1739127039564,-500.0,9.998e-05,2]
[352467671,1739127039573,-500.0,9.998e-05,2]
[352467673,1739127039582,-500.0,9.998e-05,2]
[352467675,1739127039591,-500.0,9.998e-05,2]
[352467677,1739127039605,-500.0,9.998e-05,2]
[352467679,1739127039614,-500.0,9.998e-05,2]
[352467681,1739127039624,-466.31521099,9.998e-05,2]
[352467683,1739127039633,-500.0,9.998e-05,2]
[352467684,1739127039642,-283.07118993,9.998e-05,2]
[352467687,1739127039652,-500.0,9.998e-05,2]
[352467689,1739127039661,-500.0,9.998e-05,2]
[352467691,1739127039670,-506.69166859,9.998e-05,2]
[352467693,1739127039680,-500.0,9.998e-05,2]
[352467695,1739127039689,-500.0,9.998e-05,2]
[352467697,1739127039698,-500.0,9.998e-05,2]
[352467699,1739127039707,-500.0,9.998e-05,2]
[352467701,1739127039717,-503.60468531,9.998e-05,2]
[352467703,1739127039732,-500.0,9.998e-05,2]
[352467704,1739127039742,-500.0,9.998e-05,2]
[352467706,1739127039751,-395.80301978,9.998e-05,2]
[352467708,1739127039761,-500.0,9.998e-05,2]
[352467710,1739127039773,-500.0,9.998e-05,2]
[352467712,1739127039782,-500.0,9.998e-05,2]
[352467714,1739127039791,-500.0,9.998e-05,2]
[352467716,1739127039803,-500.0,9.998e-05,2]
[352467718,1739127039812,-500.0,9.998e-05,2]
[352467720,1739127039822,-500.0,9.998e-05,2]
[352467722,1739127039833,-500.0,9.998e-05,2]
[352467724,1739127039848,-342.7,9.998e-05,2]
[352467727,1739127039857,-500.0,9.998e-05,2]
[352467728,1739127039866,-500.0,9.998e-05,2]
[352467730,1739127039876,-500.0,9.998e-05,2]
[352467732,1739127039886,-745.89,9.998e-05,2]
[352467734,1739127039896,-500.0,9.998e-05,2]
[352467737,1739127039906,-506.51708554,9.998e-05,2]
[352467738,1739127039915,-500.0,9.998e-05,2]
[352467740,1739127039924,-509.22,9.998e-05,2]
[352467742,1739127039933,-500.0,9.998e-05,2]
[352467744,1739127039942,-500.0,9.998e-05,2]
[352467746,1739127039952,-500.0,9.998e-05,2]
[352467748,1739127039962,-500.0,9.998e-05,2]
[352467750,1739127039971,-500.0,9.998e-05,2]
[352467752,1739127039980,-500.0,9.998e-05,2]
[352467754,1739127039990,-500.0,9.998e-05,2]
[352467756,1739127039999,-500.0,9.998e-05,2]
[352467758,1739127040009,-500.0,9.998e-05,2]
[352467760,1739127040018,-500.0,9.998e-05,2]
[352467762,1739127040027,-500.0,9.998e-05,2]
[352467764,1739127040037,-700.57,9.998e-05,2]
[352467766,1739127040046,-500.0,9.998e-05,2]
[352467768,1739127040056,-500.0,9.998e-05,2]
[352467770,1739127040065,-500.0,9.998e-05,2]
[352467772,1739127040074,-500.0,9.998e-05,2]
[352467774,1739127040083,-500.0,9.998e-05,2]
[352467776,1739127040093,-500.0,9.998e-05,2]
[352467778,1739127040104,-487.90836009,9.998e-05,2]
[352467780,1739127040113,-500.0,9.998e-05,2]
[352467782,1739127040122,-500.0,9.998e-05,2]
[352467784,1739127040132,-500.0,9.998e-05,2]
[352467786,1739127040141,-500.0,9.998e-05,2]
[352467788,1739127040150,-334.87,9.998e-05,2]
[352467790,1739127040160,-500.0,9.998e-05,2]
[352467792,1739127040168,-500.0,9.998e-05,2]
[352467794,1739127040178,-500.0,9.998e-05,2]
[352467795,1739127040186,-500.0,9.998e-05,2]
[352467797,1739127040196,-521.92,9.998e-05,2]
[352467799,1739127040206,-500.0,9.998e-05,2]
[352467801,1739127040216,-198.97,9.998e-05,2]
[352467803,1739127040225,-500.0,9.998e-05,2]
[352467805,1739127040235,-500.0,9.998e-05,2]
[352467807,1739127040245,-500.0,9.998e-05,2]
[352467810,1739127040256,-500.0,9.998e-05,2]
[352467812,1739127040266,-500.0,9.998e-05,2]
[352467813,1739127040274,-500.0,9.998e-05,2]
[352467814,1739127040283,-500.0,9.998e-05,2]
[352467815,1739127040292,-500.0,9.998e-05,2]
[352467816,1739127040301,-500.0,9.998e-05,2]
[352467817,1739127040310,-500.0,9.998e-05,2]
[352467818,1739127040319,-2367.45,9.998e-05,2]
[352467819,1739127040328,-500.0,9.998e-05,2]
[352467820,1739127040337,-536.37,9.998e-05,2]
[352467821,1739127040348,-500.0,9.998e-05,2]
[352467822,1739127040357,-500.0,9.998e-05,2]
[352467823,1739127040366,-500.0,9.998e-05,2]
[352467824,1739127040375,-500.0,9.998e-05,2]
[352467826,1739127040384,-382.53989813,9.998e-05,2]
[352467828,1739127040393,-515.46,9.998e-05,2]
[352467830,1739127040402,-576.33,9.998e-05,2]
[352467832,1739127040411,-500.0,9.998e-05,2]
[352467834,1739127040421,-500.0,9.998e-05,2]
[352467836,1739127040430,-500.0,9.998e-05,2]
[352467838,1739127040439,-500.0,9.998e-05,2]
[352467840,1739127040448,-500.0,9.998e-05,2]
[352467842,1739127040457,-599.9290566,9.998e-05,2]
[352467844,1739127040467,-500.0,9.998e-05,2]
[352467846,1739127040476,-500.0,9.998e-05,2]
[352467848,1739127040486,-500.0,9.998e-05,2]
[352467850,1739127040496,-538.47,9.998e-05,2]
[352467852,1739127040505,-302.51451088,9.998e-05,2]
[352467854,1739127040515,-500.0,9.998e-05,2]
[352467856,1739127040524,-500.0,9.998e-05,2]
[352467858,1739127040533,-500.0,9.998e-05,2]
[352467860,1739127040543,-500.0,9.998e-05,2]
[352467862,1739127040553,-500.0,9.998e-05,2]
[352467864,1739127040562,-500.0,9.998e-05,2]
[352467866,1739127040572,-501.34066802,9.998e-05,2]
[352467868,1739127040583,-500.0,9.998e-05,2]
[352467870,1739127040592,-500.0,9.998e-05,2]
[352467872,1739127040603,-500.79,9.998e-05,2]
[352467874,1739127040612,-500.0,9.998e-05,2]
[352467876,1739127040621,-500.0,9.998e-05,2]
[352467878,1739127040631,-500.0,9.998e-05,2]
[352467880,1739127040641,-500.0,9.998e-05,2]
[352467882,1739127040650,-2164.42,9.998e-05,2]
[352467884,1739127040659,-500.0,9.998e-05,2]
[352467886,1739127040669,-644.38759498,9.998e-05,2]
[352467888,1739127040679,-500.0,9.998e-05,2]
[352467890,1739127040688,-500.0,9.998e-05,2]
[352467892,1739127040697,-500.0,9.998e-05,2]
[352467894,1739127040707,-500.0,9.998e-05,2]
[352467896,1739127040720,-500.0,9.998e-05,2]
[352467898,1739127040729,-500.0,9.998e-05,2]
[352467900,1739127040738,-1177.643761,9.999e-05,3]
[352467902,1739127040747,-500.0,9.999e-05,2]
[352467904,1739127040757,-500.0,9.999e-05,2]
[352467905,1739127040767,-500.0,9.999e-05,2]
[352467907,1739127040776,-1090.34,9.999e-05,2]
[352467909,1739127040786,-500.0,9.999e-05,2]
[352467911,1739127040796,-500.0,9.999e-05,2]
[352467913,1739127040806,-500.0,9.999e-05,2]
[352467915,1739127040815,-500.0,9.999e-05,2]
[352467917,1739127040825,-500.0,9.999e-05,2]
[352467919,1739127040834,-500.3,9.999e-05,2]
[352467921,1739127040846,-556.76,9.999e-05,2]
[352467923,1739127040857,-502.53,9.999e-05,2]
[352467925,1739127040867,-512.08,9.999e-05,2]
[352467927,1739127040877,-500.0,9.999e-05,2]
[352467929,1739127040887,-825.76,9.999e-05,2]
[352467931,1739127040897,-500.0,9.999e-05,2]
[352467933,1739127040906,-500.0,9.999e-05,2]
[352467935,1739127040916,-500.0,9.999e-05,2]
[352467937,1739127040926,-500.0,9.999e-05,2]
[352467939,1739127040935,-1233.46148798,9.999e-05,3]
[352467941,1739127040945,-500.0,9.999e-05,2]
[352467943,1739127040954,-500.0,9.999e-05,2]
[352467945,1739127040964,-500.0,9.999e-05,2]
[352467947,1739127040974,-500.0,9.999e-05,2]
[352467949,1739127040983,-500.0,9.999e-05,2]
[352467951,1739127040993,-500.0,9.999e-05,2]
[352467953,1739127041003,-500.0,9.999e-05,2]
[352467955,1739127041012,-623.46,9.999e-05,2]
[352467957,1739127041021,-500.0,9.999e-05,2]
[352467959,1739127041030,-500.0,9.999e-05,2]
[352467961,1739127041039,-500.0,9.999e-05,2]
[352467963,1739127041048,-522.58,9.999e-05,2]
[352467965,1739127041057,-500.0,9.999e-05,2]
[352467967,1739127041067,-500.0,9.999e-05,2]
[352467968,1739127041076,-500.0,9.999e-05,2]
[352467970,1739127041086,-500.0,9.999e-05,2]
[352467972,1739127041096,-500.0,9.999e-05,2]
[352467975,1739127041105,-530.92,9.999e-05,2]
[352467976,1739127041114,-500.0,9.999e-05,2]
[352467979,1739127041124,-500.0,9.999e-05,2]
[352467980,1739127041133,-500.0,9.999e-05,2]
[352467982,1739127041143,-500.0,9.999e-05,2]
[352467984,1739127041152,-500.0,9.999e-05,2]
[352467986,1739127041161,-500.0,9.999e-05,2]
[352467988,1739127041170,-500.0,9.999e-05,2]
[352467990,1739127041180,-500.0,9.999e-05,2]
[352467992,1739127041189,-500.0,9.999e-05,2]
[352467994,1739127041198,-500.0,9.999e-05,2]
[352467996,1739127041208,-500.0,9.999e-05,2]
[352467998,1739127041218,-500.0,9.999e-05,2]
[352468000,1739127041228,-502.79541588,9.999e-05,2]
[352468018,1739127041399,-500.0,9.999e-05,2]
[352468020,1739127041409,-500.0,9.999e-05,2]
[352468022,1739127041419,-500.0,9.999e-05,2]
[352468024,1739127041429,-500.0,9.999e-05,2]
[352468026,1739127041439,-500.0,9.999e-05,2]
[352468028,1739127041448,-500.0,9.999e-05,2]
[352468030,1739127041458,-500.0,9.999e-05,2]
[352468032,1739127041468,-500.0,9.999e-05,2]
[352468034,1739127041478,-500.0,9.999e-05,2]
[352468036,1739127041487,-500.0,9.999e-05,2]
[352468038,1739127041496,-500.0,9.999e-05,2]
[352468040,1739127041506,-500.0,9.999e-05,2]
[352468042,1739127041515,-500.0,9.999e-05,2]
[352468044,1739127041524,-500.0,9.999e-05,2]
[352468046,1739127041534,-500.0,9.999e-05,2]
[352468048,1739127041544,-500.0,9.999e-05,2]
[352468050,1739127041554,-629.74,9.999e-05,2]
[352468052,1739127041563,-500.0,9.999e-05,2]
[352468054,1739127041572,-500.0,9.999e-05,2]
[352468056,1739127041582,-500.0,9.999e-05,2]
[352468058,1739127041591,-500.0,9.999e-05,2]
[352468060,1739127041602,-500.0,9.999e-05,2]
[352468062,1739127041611,-500.0,9.999e-05,2]
[352468064,1739127041621,-500.0,9.999e-05,2]
[352468066,1739127041631,-500.47873566,9.999e-05,2]
[352468068,1739127041640,-400.24,9.999e-05,2]
[352468070,1739127041650,-500.0,9.999e-05,2]
[352468072,1739127041659,-500.0,9.999e-05,2]
[352468074,1739127041669,-500.0,9.999e-05,2]
[352468076,1739127041678,-500.0,9.999e-05,2]
[352468078,1739127041687,-500.0,9.999e-05,2]
[352468080,1739127041697,-500.0,9.999e-05,2]
[352468082,1739127041706,-500.0,9.999e-05,2]
[352468084,1739127041716,-500.0,9.999e-05,2]
[352468086,1739127041728,-500.0,9.999e-05,2]
[352468088,1739127041737,-500.0,9.999e-05,2]
[352468090,1739127041746,-545.59596639,9.999e-05,2]
[352468092,1739127041756,-500.0,9.999e-05,2]
[352468094,1739127041766,-500.0,9.999e-05,2]
[352468096,1739127041776,-500.90416506,9.999e-05,2]
[352468098,1739127041785,-350.1101957,9.999e-05,2]
[352468100,1739127041795,-500.0,9.999e-05,2]
[352468102,1739127041806,-509.00952392,9.999e-05,2]
[352468104,1739127041817,-514.52,9.999e-05,2]
[352468106,1739127041826,-529.16745186,9.999e-05,2]
[352468108,1739127041836,-500.0,9.999e-05,2]
[352468110,1739127041847,-500.0,9.999e-05,2]
[352468112,1739127041857,-500.0,9.999e-05,2]
[352468114,1739127041866,-505.43415508,9.999e-05,2]
[352468116,1739127041876,-500.0,9.999e-05,2]
[352468118,1739127041886,-500.0,9.999e-05,2]
[352468120,1739127041896,-500.0,9.999e-05,2]
[352468122,1739127041906,-500.0,9.999e-05,2]
[352468124,1739127041915,-500.0,9.999e-05,2]
[352468126,1739127041925,-404.18,9.999e-05,2]
[352468128,1739127041935,-500.0,9.999e-05,2]
[352468130,1739127041944,-500.0,9.999e-05,2]
[352468132,1739127041954,-533.89287663,9.999e-05,2]
[352468134,1739127041964,-500.0,9.999e-05,2]
[352468136,1739127041974,-500.0,9.999e-05,2]
[352468138,1739127041984,-500.0,9.999e-05,2]
[352468140,1739127041994,-500.0,9.999e-05,2]
[352468142,1739127042004,-362.15136288,9.999e-05,2]
[352468144,1739127042014,-500.0,9.999e-05,2]
[352468146,1739127042024,-500.0,9.999e-05,2]
[352468148,1739127042033,-500.0,9.999e-05,2]
[352468150,1739127042043,-317.70521565,9.999e-05,2]
[352468163,1739127042249,-182.29478435,9.999e-05,2]
[352468165,1739127042259,-500.0,9.999e-05,2]
[352468167,1739127042268,-380.70658183,9.999e-05,2]
[352468169,1739127042280,-119.29341817,9.999e-05,2]
[352468171,1739127042290,-500.0,9.999e-05,2]
[352468173,1739127042299,-500.0,9.999e-05,2]
[352468175,1739127042308,-500.0,9.999e-05,2]
[352468177,1739127042317,-500.0,9.999e-05,2]
[352468179,1739127042328,-500.0,9.999e-05,2]
[352468181,1739127042339,-501.3207919,9.999e-05,2]
[352468183,1739127042348,-500.0,9.999e-05,2]
[352468186,1739127042357,-511.47612803,9.999e-05,2]
[352468189,1739127042366,-500.0,9.999e-05,2]
[352468191,1739127042376,-500.0,9.999e-05,2]
[352468193,1739127042385,-500.0,9.999e-05,2]
[352468195,1739127042394,-500.0,9.999e-05,2]
[352468197,1739127042403,-500.0,9.999e-05,2]
[352468199,1739127042412,-1512.03,9.999e-05,2]
[352468201,1739127042422,-500.0,9.999e-05,2]
[352468203,1739127042431,-500.0,9.999e-05,2]
[352468205,1739127042441,-500.0,9.999e-05,2]
[352468207,1739127042451,-500.0,9.999e-05,2]
[352468209,1739127042461,-500.0,9.999e-05,2]
[352468211,1739127042471,-500.0,9.999e-05,2]
[352468213,1739127042480,-500.0,9.999e-05,2]
[352468215,1739127042489,-500.0,9.999e-05,2]
[352468217,1739127042499,-500.0,9.999e-05,2]
[352468219,1739127042508,-500.0,9.999e-05,2]
[352468221,1739127042517,-500.0,9.999e-05,2]
[352468223,1739127042526,-500.0,9.999e-05,2]
[352468225,1739127042536,-500.0,9.999e-05,2]
[352468227,1739127042545,-59.57773501,9.999e-05,2]
[352468229,1739127042557,-440.42226499,9.999e-05,2]
[352468231,1739127042567,-500.28,9.999e-05,2]
[352468233,1739127042576,-23.92991188,9.999e-05,2]
[352468244,1739127042679,-476.07008812,9.999e-05,2]
[352468246,1739127042689,-287.43325311,9.999e-05,2]
[352468249,1739127042701,-212.56674689,9.999e-05,2]
[352468251,1739127042711,-500.0,9.999e-05,2]
[352468252,1739127042724,-500.0,9.999e-05,2]
[352468255,1739127042734,-500.0,9.999e-05,2]
[352468257,1739127042743,-2367.45,9.999e-05,2]
[352468259,1739127042753,-920.07895451,9.999e-05,2]
[352468261,1739127042769,-1447.37104549,9.999e-05,2]
[352468263,1739127042779,-2367.45,9.999e-05,2]
[352468265,1739127042788,-116.19542551,9.999e-05,2]
[352468268,1739127042801,-2251.25457449,9.999e-05,2]
[352468270,1739127042810,-2367.45,9.999e-05,2]
[352468272,1739127042820,-2367.45,9.999e-05,2]
[352468273,1739127042829,-2367.45,9.999e-05,2]
[352468275,1739127042838,-514.92,9.999e-05,2]
[352468278,1739127042848,-585.92,9.999e-05,2]
[352468280,1739127042858,-500.0,9.999e-05,2]
[352468282,1739127042867,-500.0,9.999e-05,2]
[352468284,1739127042877,-500.0,9.999e-05,2]
[352468286,1739127042887,-500.0,9.999e-05,2]
[352468288,1739127042896,-500.0,9.999e-05,2]
[352468290,1739127042905,-620.59,9.999e-05,2]
[352468292,1739127042915,-217.09738408,9.999e-05,2]
[352468294,1739127042924,-1000.0,9.999e-05,2]
[352468296,1739127042933,-500.0,9.999e-05,2]
[352468297,1739127042943,-2687.0,0.0001,2]
[352468299,1739127042953,-2989.08002913,0.0001,2]
[352468310,1739127043047,-9793.7,0.0001,2]
[352468313,1739127043061,-49181.06466598,0.0001,2]
[352468316,1739127043081,-648.38324154,0.0001,2]
[352468318,1739127043093,-522.91188455,0.0001,2]
[352468320,1739127043104,-34369.9999999,0.0001,2]
[352468323,1739127043115,-2929.06688759,0.0001,2]
[352468328,1739127043130,-8711.71167505,0.0001,2]
[352468331,1739127043142,-434.08,0.0001,2]
[352468334,1739127043153,-263.97058825,0.0001,2]
[352468337,1739127043164,-73874.64618211,0.0001,2]
[352468341,1739127043175,-256.53351,0.0001,2]
[352468344,1739127043186,-5755.88586317,0.0001,2]
[352468346,1739127043197,-1794.55587893,0.0001,2]
[352468348,1739127043208,-4019.09127962,0.0001,2]
[352468350,1739127043220,-315.6,0.0001,2]
[352468594,1739127045782,-500.0,9.998e-05,2]
[352468595,1739127045791,-500.0,9.998e-05,2]
[352468596,1739127045803,-500.0,9.999e-05,2]
[352468597,1739127045812,-5343.39890182,0.0001,2]
[352468615,1739127084773,831.47,8.219e-05,2]
[352468616,1739127969576,1059.0,8.479e-05,2]
[352468617,1739127990761,1059.0,8.218e-05,2]
[352468618,1739128068759,789.89,8.219e-05,2]
[352468644,1739128231878,-250.0,8.578e-05,2]
[352468646,1739128231888,-446.62044734,8.607e-05,2]
[352468651,1739128232094,-314.25955266,8.607e-05,2]
[352468652,1739128232106,-245.39,8.613e-05,2]
[352468653,1739128232116,-3521.76523898,8.635e-05,2]
[352468654,1739128232128,-4526.54749149,8.635e-05,2]
[352468655,1739128232140,-395.00726953,8.635e-05,2]
[352468656,1739128232150,-789.16554425,8.713e-05,2]
[352468657,1739128232163,-210.83445575,8.713e-05,2]
[352468658,1739128232172,-523.4,8.81e-05,2]
[352468659,1739128232182,-150.0,8.81e-05,2]
[352468660,1739128232192,-1195.83,8.81e-05,2]
[352468661,1739128232202,-439.73,8.81e-05,2]
[352468662,1739128232211,-170.71,8.825e-05,2]
[352468663,1739128232221,-355.68396404,8.854e-05,2]
[352468664,1739128232234,-1144.31603596,8.854e-05,2]
[352468665,1739128232243,-500.0,8.854e-05,2]
[352468666,1739128232252,-1127.57,8.918e-05,2]
[352468667,1739128232262,-1059.0,8.926e-05,2]
[352468668,1739128232271,-442.3,8.926e-05,2]
[352468669,1739128232281,-576.81396404,8.926e-05,2]
[352468670,1739128232307,-4061.70603596,8.926e-05,2]
[352468671,1739128232317,-150.99,8.926e-05,2]
[352468672,1739128232327,-378.81,8.969e-05,2]